Cogmind - Beta 16.1 @@@ ROGUE MODE // 2026.02.13 @ 14:00:34 Player: Megaknight51 Result: Self-destructed Performance ------------- Evolutions (5) 2500 Regions Visited (9) 1800 Robots Destroyed (22) 110 Value Destroyed (362) 362 Prototype IDs (2) 40 Alien Tech Used (0) 0 Bonus (0) 0 TOTAL SCORE: 4812 Bonus ------- None Cogmind --------- Core Integrity 959/1000 Matter 140/300 Energy 148/150 System Corruption 1% Temperature Cool (0) Movement Hovering (48) Location -5/Extension Parts ------- > --- POWER (2) -------- Light Angular Momentum Engine > --- PROPULSION (5) --- Antigrav System Antigrav System Antigrav System Antigrav System > --- UTILITY (8) ------ Trap Scanner Enhanced Optical Array Advanced Terrain Scan Processor > --- WEAPON (2) ------- (None) > --- INVENTORY (5) ---- Improved Reaction Control System Improved Recalibrator Hypervelocity Gauss Rifle Peak State ------------ > --- POWER ------------ Improved Deuterium Engine > --- PROPULSION ------- Cesium-ion Thruster Cesium-ion Thruster Cesium-ion Thruster Cesium-ion Thruster > --- UTILITY ---------- Structural Scanner Improved Trap Scanner Machine Analyzer Enhanced Optical Array Improved Sensor Array Improved Signal Interpreter Advanced Terrain Scanner Improved Terrain Scan Processor > --- WEAPON ----------- Gauss Rifle Heavy Flail > --- INVENTORY -------- Light Angular Momentum Engine Trap Scanner Enhanced Optical Array Improved Reaction Control System Hypervelocity Gauss Rifle [Rating: 53] Favorites ----------- Power Improved Deuterium Engine Engine Improved Deuterium Engine Power Core Micro Nuclear Core Propulsion Cesium-ion Thruster Leg Aluminum Leg Hover Unit Antigrav System Flight Unit Cesium-ion Thruster Utility Structural Scanner Device Structural Scanner Processor Improved Signal Interpreter Weapon Gauss Rifle Energy Gun Small Laser Ballistic Gun Gauss Rifle Special Weapon Mining Laser Impact Weapon Heavy Flail Build | -11 -10 -9 -8 -7 -6 -6 -6 -5 -5 ------- Run | Yrd Mat Mat Mat Fac Fac Was Fac Fac Ext Slots Evolved 10 | . . 2 2 2 2 . . 2 . Power 1 | . . . . . . . . 1 . Propulsion 3 | . . . 2 . . . . 1 . Utility 6 | . . 2 . 2 2 . . . . Weapon . | . . . . . . . . . . Parts Attached 55 | 7 5 3 4 18 7 . 3 8 . Power 9 | 1 1 1 1 2 . . 2 1 . Engine 6 | 1 1 1 . 1 . . 1 1 . Core 3 | . . . 1 1 . . 1 . . Reactor . | . . . . . . . . . . Propulsion 18 | 2 2 . 1 7 2 . . 4 . Treads . | . . . . . . . . . . Leg 2 | 2 . . . . . . . . . Wheel . | . . . . . . . . . . Hover 4 | . . . . . . . . 4 . Flight 12 | . 2 . 1 7 2 . . . . Utility 19 | 2 1 2 2 5 3 . 1 3 . Device 12 | 2 . 2 1 3 2 . 1 1 . Storage . | . . . . . . . . . . Processor 7 | . 1 . 1 2 1 . . 2 . Hackware . | . . . . . . . . . . Protection . | . . . . . . . . . . Artifact . | . . . . . . . . . . Weapon 9 | 2 1 . . 4 2 . . . . Energy Gun 2 | 2 . . . . . . . . . Energy Cannon . | . . . . . . . . . . Ballistic Gun 5 | . . . . 4 1 . . . . Ballistic Cannon . | . . . . . . . . . . Launcher . | . . . . . . . . . . Special Weapon 1 | . 1 . . . . . . . . Impact Weapon 1 | . . . . . 1 . . . . Slashing Weapon . | . . . . . . . . . . Piercing Weapon . | . . . . . . . . . . Special Melee Weapon . | . . . . . . . . . . Unidentified Prototypes . | . . . . . . . . . . Parts Lost 10 | . . . 2 3 1 . 4 . . Power 1 | . . . . 1 . . . . . Propulsion 6 | . . . 2 . 1 . 3 . . Utility 2 | . . . . 1 . . 1 . . Weapon 1 | . . . . 1 . . . . . Highest Loss Streak 3 | . . . 2 3 1 . 2 . . To Critical Strikes . | . . . . . . . . . . Average Backups 4 | 1 3 3 5 4 4 4 4 3 3 Power . | . . . . . . 1 1 . . Propulsion . | . . . . 1 1 . . . . Utility 2 | . 2 2 4 2 1 2 2 2 2 Weapon . | . 1 1 1 . . 1 1 1 1 Tool/Special . | . . . . . . . . . . Unused Backups 10 | . 1 . 1 3 3 . . . 2 Power 1 | . 1 . . . . . . . . Propulsion 1 | . . . . 1 . . . . . Utility 6 | . . . 1 2 2 . . . 1 Weapon 1 | . . . . . . . . . 1 Tool/Special 1 | . . . . . 1 . . . . Average Slot Usage (%) 85 | . 96 97 73 88 98 100 79 35 47 Engine 5 | . 14 11 9 2 6 6 5 3 5 Hover 1 | . . . . . . . . 20 23 Flight 19 | . 22 22 12 22 25 26 15 . . Device 22 | . 17 31 26 22 25 26 22 3 5 Processor 19 | . 10 11 9 22 25 26 22 6 11 Energy Gun 4 | . 22 12 9 4 . . . . . Ballistic Gun 6 | . . . . 10 11 6 5 . . Special Weapon 1 | . 2 10 6 . . . . . . Impact Weapon 1 | . . . . . 1 6 5 . . Peak Build Rating 53 | 9 9 13 17 42 52 51 53 42 42 Average Rating 30 | 6 8 10 13 31 50 51 42 35 42 On Entrance 23 | . 9 9 11 14 42 51 51 2 42 Avg Prop Armor Cover (%) 22 | . . . . 10 . . . 40 . Naked Turns 65 | . . . . . . . 60 5 . Heaviest Build 23 | 9 9 8 8 21 23 22 23 13 11 Greatest Support 44 | 20 20 8 8 21 25 24 24 44 44 Greatest Overweight (x) 7 | . 2 . 2 2 7 . 7 . . Average Overweight (x) . | . . . . . . . . . . Largest Inventory Capacity 5 | 5 5 5 5 5 5 5 5 5 5 Average Capacity 5 | 5 5 5 5 5 5 5 5 5 5 Most Carried 5 | 3 5 5 5 5 5 4 5 5 3 Average Carried 4 | 1 3 3 5 4 4 4 4 3 3 Final Capacity 5 | 5 5 5 5 5 5 5 5 5 5 Final Carried 5 | 3 4 5 5 5 4 4 5 3 3 Class Distribution -------------------- 22% | Scout 21% | Skirmisher 18% | Mutant 15% | Scavenger-Scout 8% | Assassin 7% | Scavenger-Skirmisher 6% | Scavenger-Mutant Dominant Class ---------------- Scavenger-Mutant | -10/Materials Scavenger-Scout | -9/Materials Scavenger-Scout | -8/Materials Scout | -7/Factory Skirmisher | -6/Factory Skirmisher | -6/Waste Assassin | -6/Factory Mutant | -5/Factory Mutant | -5/Extension Resources | -11 -10 -9 -8 -7 -6 -6 -6 -5 -5 ----------- Run | Yrd Mat Mat Mat Fac Fac Was Fac Fac Ext Matter Collected 811 | 270 70 . 38 222 211 . . . . Remotely . | . . . . . . . . . . Salvage Created 559 | 228 120 . 38 127 46 . . . . Parts 45 | 20 9 . 6 8 2 . . . . Haulers Intercepted 1 | . 1 . . . . . . . . Recyclers Shooed . | . . . . . . . . . . Parts Field Recycled . | . . . . . . . . . . Retrieved Matter . | . . . . . . . . . . Parts Self-Destructed . | . . . . . . . . . . Prevented . | . . . . . . . . . . Parts Restored . | . . . . . . . . . . Kills | -11 -10 -9 -8 -7 -6 -6 -6 -5 -5 ------- Run | Yrd Mat Mat Mat Fac Fac Was Fac Fac Ext Combat Hostiles Destroyed 9 | . 2 . 3 3 1 . . . . Guns 9 | . 2 . 3 3 1 . . . . Classes Destroyed 8 | 2 4 . . 1 1 . . . . Builder 2 | . 2 . . . . . . . . Tunneler 7 | 7 . . . . . . . . . Hauler 1 | . 1 . . . . . . . . Recycler 1 | 1 . . . . . . . . . Mechanic 1 | . . . . 1 . . . . . Operator 1 | . 1 . . . . . . . . Swarmer 8 | . 2 . 3 3 . . . . . Programmer 1 | . . . . . 1 . . . . Best Kill Streak 4 | 4 2 . 3 3 1 . . . . Combat Bots Only 3 | . 2 . 3 3 1 . . . . Max Kills in Single Turn 2 | 1 2 . 1 1 1 . . . . Gunslinging 1 | . 1 . . . . . . . . Exploded . | . . . . . . . . . . Melee . | . . . . . . . . . . Uniques/NPCs Destroyed . | . . . . . . . . . . Combat | -11 -10 -9 -8 -7 -6 -6 -6 -5 -5 -------- Run | Yrd Mat Mat Mat Fac Fac Was Fac Fac Ext Hostile Shots Fired 288 | . . . 31 55 15 . 174 13 . Missed 130 | . . . 14 22 4 . 83 7 . Hits 158 | . . . 17 33 11 . 91 6 . Projectile 158 | . . . 17 33 11 . 91 6 . Critical Strikes 2 | . . . . 1 . . . 1 . Damage Taken 1767 | . . . 174 501 169 . 795 128 . Core 792 | . . . 58 185 15 . 493 41 . Absorbed by Shields . | . . . . . . . . . . Core Remaining (%) 83 | 100 100 100 89 73 . . 40 . . Volleys Fired 53 | 16 13 1 6 12 5 . . . . Largest 2 | 2 2 2 2 2 2 . . . . Hottest 140 | 80 100 140 100 80 56 . . . . Shots Fired 98 | 32 23 2 10 21 10 . . . . Gun 92 | 32 20 1 8 21 10 . . . . Cannon . | . . . . . . . . . . Launcher . | . . . . . . . . . . Special 6 | . 3 1 2 . . . . . . Kinetic 17 | . . . . 7 10 . . . . Thermal 81 | 32 23 2 10 14 . . . . . Explosive . | . . . . . . . . . . Electromagnetic . | . . . . . . . . . . Robot Hit Streak 8 | 7 3 . 2 8 5 . . . . Robot Miss Streak 3 | 2 3 . 3 3 1 . . . . Penetration Max . | . . . . . . . . . . Secondary Targets 1 | . 1 . . . . . . . . Max Gunslinging Chain 1 | . 1 . . . . . . . . Shots Hit Robots 53 | 20 12 . 3 13 5 . . . . Core Hits 31 | 9 8 . 3 9 2 . . . . Critical Kills . | . . . . . . . . . . Critical Parts Destroyed . | . . . . . . . . . . Critical Strikes . | . . . . . . . . . . Melee Attacks 6 | . . . . . 6 . . . . Impact 6 | . . . . . 6 . . . . Slashing . | . . . . . . . . . . Piercing . | . . . . . . . . . . Sneak Attacks . | . . . . . . . . . . Combat Hostiles . | . . . . . . . . . . Follow-up Attacks . | . . . . . . . . . . Damage Inflicted 714 | 232 146 . 45 163 115 . 3 10 . Guns 677 | 232 122 . 45 163 115 . . . . Cannons . | . . . . . . . . . . Explosions . | . . . . . . . . . . Melee . | . . . . . . . . . . Ramming 13 | . . . . . . . 3 10 . Kinetic 148 | . . . . 33 115 . . . . Thermal 553 | 232 146 . 45 130 . . . . . Explosive . | . . . . . . . . . . Electromagnetic . | . . . . . . . . . . Impact . | . . . . . . . . . . Slashing . | . . . . . . . . . . Piercing . | . . . . . . . . . . Highest Corruption 2 | . 1 . . 2 1 1 1 1 1 Average Corruption 1 | . 1 . . 2 1 1 1 1 1 Corruption Purged . | . . . . . . . . . . Corruption Blocked . | . . . . . . . . . . Effects 6 | . . . . 1 1 . 3 1 . Message Errors 2 | . . . . . 1 . 1 . . Matter Fused 1 | . . . . . . . 1 . . Energy Discharges 2 | . . . . 1 . . . 1 . Data Loss (minor) 1 | . . . . . . . 1 . . Overload Shots . | . . . . . . . . . . Overflow Damage . | . . . . . . . . . . Projectiles . | . . . . . . . . . . Explosions . | . . . . . . . . . . Melee . | . . . . . . . . . . Knockbacks 1 | . . . . . . . . 1 . Impact 1 | . . . . . . . . 1 . Kinetic . | . . . . . . . . . . Secondary . | . . . . . . . . . . Self-Inflicted Damage 6 | . . . . . . . 1 5 . Shots . | . . . . . . . . . . Rammed 2 | . . . . . . . 1 1 . Targets Rammed 2 | . . . . . . . 1 1 . Kicked . | . . . . . . . . . . Crushed . | . . . . . . . . . . Highest Temperature 72 | 54 72 37 24 12 . . . . . Average Temperature 22 | 20 29 20 8 7 . . . . . Received Heat Transfer 246 | . . . 18 18 . . 210 . . Siege Activations . | . . . . . . . . . . Martial Activations . | . . . . . . . . . . Shielding Activations . | . . . . . . . . . . Robots Disrupted . | . . . . . . . . . . Combat Hostiles . | . . . . . . . . . . Robots Corrupted . | . . . . . . . . . . Combat Hostiles . | . . . . . . . . . . Parts Fried . | . . . . . . . . . . Impact Corruptions . | . . . . . . . . . . Robots Melted . | . . . . . . . . . . Combat Hostiles . | . . . . . . . . . . Parts Melted 2 | 1 . . . 1 . . . . . Heat Transferred 1250 | 525 325 . 100 300 . . . . . Parts Sabotaged . | . . . . . . . . . . Parts Stolen . | . . . . . . . . . . Parts Stripped . | . . . . . . . . . . Power Chain Reactions . | . . . . . . . . . . Alert | -11 -10 -9 -8 -7 -6 -6 -6 -5 -5 ------- Run | Yrd Mat Mat Mat Fac Fac Was Fac Fac Ext Maximum Alert Level . | . . . . . . . . . . Low Security (%) 100 | 100 100 100 100 100 100 100 100 100 100 Level 1 . | . . . . . . . . . . Level 2 . | . . . . . . . . . . Level 3 . | . . . . . . . . . . Level 4 . | . . . . . . . . . . Level 5 . | . . . . . . . . . . High Security . | . . . . . . . . . . Max Security . | . . . . . . . . . . Peak Influence 123 | 15 45 15 89 123 56 14 57 30 4 Initial 56 | . . . . 4 56 14 9 . 4 Average 11 | 1 20 1 45 9 11 14 4 5 4 Influence Increases 852 | 40 118 15 140 301 141 . 67 30 . Destroy 0b10 Robot/C 180 | . 40 . 60 60 20 . . . . Destroy 0b10 Robot/NC 65 | 40 20 . . 5 . . . . . Destroy Leader 32 | . 2 . 10 10 10 . . . . Successful Hack 73 | . 11 . 24 . 16 . 22 . . Disable Machine 90 | . 15 15 15 15 30 . . . . Destroy Structure 7 | . . . 1 1 5 . . . . Partial Spotted 90 | . . . 15 30 . . 45 . . Lose Combat Pursuer 315 | . 30 . 15 180 60 . . 30 . Influence Decreases 848 | 40 118 15 130 194 216 28 81 20 6 Entered New Map 106 | . . . . 6 61 28 5 . 6 Time Decay 629 | 40 80 15 110 163 145 . 56 20 . Lost Part 75 | . . . 20 25 10 . 20 . . Purge Threat 38 | . 38 . . . . . . . . Squads Dispatched 12 | . 3 1 . 3 2 . . 2 1 Investigation 4 | . 1 1 . . . . . 1 1 Extermination 4 | . . . . 2 1 . . 1 . Reinforcement 4 | . 2 . . 1 1 . . . . Assault . | . . . . . . . . . . Garrison . | . . . . . . . . . . Intercept . | . . . . . . . . . . Searches Triggered . | . . . . . . . . . . Construction Impeded . | . . . . . . . . . . Haulers Reinforced . | . . . . . . . . . . Active Scanning Responses . | . . . . . . . . . . Cargo Convoy Interrupts 1 | . . . . 1 . . . . . Stealth | -11 -10 -9 -8 -7 -6 -6 -6 -5 -5 --------- Run | Yrd Mat Mat Mat Fac Fac Was Fac Fac Ext Distress Signals 5 | . 3 . 1 . 1 . . . . Communications Jammed . | . . . . . . . . . . Distress Signals . | . . . . . . . . . . Times Spotted 61 | . 8 1 6 20 13 6 4 3 . Peak Tracking Total 11 | . 4 1 5 11 10 6 4 3 . Tactical Retreats 9 | . 1 . 1 5 1 . . 1 . Traps | -11 -10 -9 -8 -7 -6 -6 -6 -5 -5 ------- Run | Yrd Mat Mat Mat Fac Fac Was Fac Fac Ext Traps Triggered 12 | . 1 1 4 3 1 . 2 . . Indirectly . | . . . . . . . . . . Trap Hack Attempts . | . . . . . . . . . . Triggered . | . . . . . . . . . . Disarmed . | . . . . . . . . . . Reprogrammed . | . . . . . . . . . . Reused . | . . . . . . . . . . Traps Extracted . | . . . . . . . . . . Installed . | . . . . . . . . . . Triggered . | . . . . . . . . . . Machines | -11 -10 -9 -8 -7 -6 -6 -6 -5 -5 ---------- Run | Yrd Mat Mat Mat Fac Fac Was Fac Fac Ext Machines Disabled 6 | . 1 1 1 1 2 . . . . Max in Single Turn 1 | . 1 1 1 1 1 . . . . Machines Repaired . | . . . . . . . . . . Machines Dismantled . | . . . . . . . . . . Machines Sabotaged . | . . . . . . . . . . Overloaded Fab Kills . | . . . . . . . . . . Hacking | -11 -10 -9 -8 -7 -6 -6 -6 -5 -5 --------- Run | Yrd Mat Mat Mat Fac Fac Was Fac Fac Ext Machines Accessed 19 | . 2 . 6 2 5 . 1 2 1 Terminals 16 | . 2 . 6 1 3 . 1 2 1 Fabricators 1 | . . . . . 1 . . . . Repair Stations . | . . . . . . . . . . Recycling Units . | . . . . . . . . . . Scanalyzers 2 | . . . . 1 1 . . . . Garrison Access . | . . . . . . . . . . Total Hacks 52 | . 7 . 16 3 16 . 3 4 3 Successful 16 | . 3 . 4 . 5 . 3 1 . Failed 36 | . 4 . 12 3 11 . . 3 3 Catastrophic 10 | . . . 2 1 4 . . 1 2 Database Lockouts . | . . . . . . . . . . Manual 30 | . 1 . 17 1 6 . 3 2 . Terminals 42 | . 7 . 16 1 8 . 3 4 3 Fabricators 2 | . . . . . 2 . . . . Repair Stations . | . . . . . . . . . . Recycling Units . | . . . . . . . . . . Scanalyzers 8 | . . . . 2 6 . . . . Garrison Access . | . . . . . . . . . . Terminal Hacks 12 | . 3 . 4 . 1 . 3 1 . Part Schematic 2 | . . . 2 . . . . . . Robot Schematic 1 | . . . 1 . . . . . . Prototype ID Bank 1 | . 1 . . . . . . . . Open DSF 1 | . . . . . . . . 1 . Branch Access Points 1 | . . . . . . . 1 . . Terminal Index 4 | . 1 . 1 . 1 . 1 . . Fabricator Index 1 | . . . . . . . 1 . . Unreport Threat 1 | . 1 . . . . . . . . Fabricator Hacks . | . . . . . . . . . . Repair Station Hacks . | . . . . . . . . . . Recycling Unit Hacks . | . . . . . . . . . . Scanalyzer 4 | . . . . . 4 . . . . Retrieve Study 4 | . . . . . 4 . . . . Garrison Access Hacks . | . . . . . . . . . . Unauthorized Hacks . | . . . . . . . . . . Terminals . | . . . . . . . . . . Fabricators . | . . . . . . . . . . Repair Stations . | . . . . . . . . . . Recycling Units . | . . . . . . . . . . Scanalyzers . | . . . . . . . . . . Garrison Access . | . . . . . . . . . . Data Cores Recovered . | . . . . . . . . . . Used . | . . . . . . . . . . Hacking Detections 17 | . 2 . 4 2 5 . 1 2 1 Full Trace Events 2 | . . . . . . . . 1 1 Feedback Events . | . . . . . . . . . . Feedback Blocked . | . . . . . . . . . . Robot Schematics Acquired 1 | . . . 1 . . . . . . Robots Built . | . . . . . . . . . . Authchips . | . . . . . . . . . . Time . | . . . . . . . . . . Total Robot Build Rating . | . . . . . . . . . . Part Schematics Acquired 2 | . . . 2 . . . . . . Parts Built . | . . . . . . . . . . Authchips . | . . . . . . . . . . Time . | . . . . . . . . . . Total Part Build Rating . | . . . . . . . . . . Part Studies Acquired 4 | . . . . . 4 . . . . Parts Repaired . | . . . . . . . . . . Time . | . . . . . . . . . . Parts Recycled . | . . . . . . . . . . Recycled Matter . | . . . . . . . . . . Retrieved Matter . | . . . . . . . . . . Retrieved Components . | . . . . . . . . . . Parts Scanalyzed . | . . . . . . . . . . Part Schematics Acquired . | . . . . . . . . . . Parts Damaged . | . . . . . . . . . . Bothacking | -11 -10 -9 -8 -7 -6 -6 -6 -5 -5 ------------ Run | Yrd Mat Mat Mat Fac Fac Was Fac Fac Ext Used RIF Installer . | . . . . . . . . . . Robots Hacked . | . . . . . . . . . . Non-combat . | . . . . . . . . . . Combat . | . . . . . . . . . . Robot Hacks Applied . | . . . . . . . . . . Relay Couplers Released . | . . . . . . . . . . Fabnet Peak Effective % . | . . . . . . . . . . Robots Rewired . | . . . . . . . . . . Allies Hacked . | . . . . . . . . . . Hacks Repelled . | . . . . . . . . . . Allies | -11 -10 -9 -8 -7 -6 -6 -6 -5 -5 -------- Run | Yrd Mat Mat Mat Fac Fac Was Fac Fac Ext Total Allies . | . . . . . . . . . . Largest Group . | . . . . . . . . . . Highest-Rated Group . | . . . . . . . . . . Highest-Rated Ally . | . . . . . . . . . . Total Orders . | . . . . . . . . . . Ally Attacks . | . . . . . . . . . . Total Damage . | . . . . . . . . . . Kills . | . . . . . . . . . . Allies Corrupted . | . . . . . . . . . . Allies Melted . | . . . . . . . . . . Intel | -11 -10 -9 -8 -7 -6 -6 -6 -5 -5 ------- Run | Yrd Mat Mat Mat Fac Fac Was Fac Fac Ext Active Infowar (turns) 2806 | 231 232 104 221 909 564 16 410 105 14 Optics 1077 | . . . . . 532 16 410 105 14 Sensors 2222 | . . 102 221 909 564 16 410 . . Terrain 2285 | 86 232 104 212 664 564 16 407 . . Structural 2221 | . . 101 221 909 564 16 410 . . Traps 1106 | . . . . . 562 16 410 104 14 Seismic 287 | 231 56 . . . . . . . . Machine Analysis 1874 | . . . . 884 564 16 410 . . Robot Analysis Total . | . . . . . . . . . . Derelict Logs Recovered . | . . . . . . . . . . Drone Launches . | . . . . . . . . . . Drone Recoveries . | . . . . . . . . . . Exploration | -11 -10 -9 -8 -7 -6 -6 -6 -5 -5 ------------- Run | Yrd Mat Mat Mat Fac Fac Was Fac Fac Ext Turns Passed 2995 | 311 232 104 221 909 564 16 470 154 14 Spaces Moved 3958 | 191 410 240 327 1238 703 62 472 287 28 Core 321 | 3 . . 35 87 1 . 115 80 . Treads . | . . . . . . . . . . Legs 214 | 188 26 . . . . . . . . Wheels . | . . . . . . . . . . Hover 235 | . . . . . . . . 207 28 Flight 3188 | . 384 240 292 1151 702 62 357 . . Fastest Speed 26 | 50 37 37 37 26 26 26 26 48 48 Average Speed 56 | 118 42 37 54 46 70 26 65 48 48 Slowest Speed 400 | 120 210 37 150 150 400 26 400 60 48 Overloaded Moves . | . . . . . . . . . . Propulsion Burnouts . | . . . . . . . . . . Robots Hopped 8 | . 1 . . 7 . . . . . Potential Cave-ins . | . . . . . . . . . . Cave-ins Triggered . | . . . . . . . . . . Exploration Rate (%) 28 | 6 58 26 29 34 20 81 12 12 8 Regions Visited 9 Branch Regions 1 Pre-discovered Areas . | . . . . . . . . . . Known Exits Taken 4 | . 1 1 1 1 . . . . . Unknown Exits Taken 3 | 1 . . . . . . 1 1 . Scrap Searched . | . . . . . . . . . . Spaces Dug 5 | . . . . . 5 . . . . Terrain Destroyed 6 | . . . 1 . 5 . . . . Melee 5 | . . . . . 5 . . . . Projectile 1 | . . . 1 . . . . . . AOE . | . . . . . . . . . . Terrain Rammed . | . . . . . . . . . . Walls Destroyed . | . . . . . . . . . . Machines Disabled . | . . . . . . . . . . Actions | -11 -10 -9 -8 -7 -6 -6 -6 -5 -5 --------- Run | Yrd Mat Mat Mat Fac Fac Was Fac Fac Ext Total 4601 | 240 435 249 354 1544 761 61 631 298 28 Wait 463 | 23 . . 5 260 22 . 153 . . Move 3935 | 190 407 239 326 1224 703 61 471 286 28 Hop 7 | . 1 . . 6 . . . . . Pick Up 25 | 4 3 3 1 7 6 . . 1 . Fast Attach 28 | 6 . . 7 8 2 . . 5 . Attach 15 | 1 2 2 . 3 3 . . 4 . Detach 4 | . 2 . . . 1 . . 1 . Swap 32 | . 5 3 5 11 5 . 3 . . Drop 31 | . 2 1 4 13 8 . 3 . . Fire 53 | 16 13 1 6 12 5 . . . . Melee 6 | . . . . . 6 . . . . Ram 2 | . . . . . . . 1 1 . Kick . | . . . . . . . . . . Crush . | . . . . . . . . . . Escape Stasis . | . . . . . . . . . . Rewire . | . . . . . . . . . . Trap . | . . . . . . . . . . Miscellaneous . | . . . . . . . . . . Route ------- -11/Scrapyard -10/Materials -9/Materials (discovered 2 exits: *Mat / *Sto) -8/Materials -7/Factory -6/Factory -6/Waste -6/Factory (discovered 3 exits: *Fac / Low x2) -5/Factory -5/Extension History --------- Turn | Location | Event 7 | -11/Scrapyard | Discovered new exit (range 16) 312 | -11/Scrapyard | Entered Materials 313 | -10/Materials | Build established: Mutant 313 | -10/Materials | Met a group of wandering Federalists 489 | -10/Materials | Discovered new exit (range 8) 543 | -10/Materials | Identified exit to Materials 544 | -10/Materials | Entered another Materials area 544 | -9/Materials | Evolved 2 slots: Utility x2 544 | -9/Materials | Discovered new exit (range 15) 567 | -9/Materials | Identified exit to Storage 645 | -9/Materials | Discovered new exit (range 4) 646 | -9/Materials | Identified exit to Materials 648 | -9/Materials | Entered another Materials area 648 | -8/Materials | Evolved 2 slots: Propulsion x2 862 | -8/Materials | Discovered new exit (range 5) 867 | -8/Materials | Identified exit to Factory 869 | -8/Materials | Entered Factory 869 | -7/Factory | Evolved 2 slots: Utility x2 1101 | -7/Factory | Lost 3 parts (1p1u1w) 1678 | -7/Factory | Cargo convoy interrupted 1741 | -7/Factory | Build established: Scout 1766 | -7/Factory | Discovered new exit (range 15) 1777 | -7/Factory | Identified exit to Factory 1778 | -7/Factory | Entered another Factory area 1778 | -6/Factory | Evolved 2 slots: Utility x2 2084 | -6/Factory | Build established: Skirmisher 2289 | -6/Factory | Spotted B-75 Beast 2342 | -6/Factory | Sucked down chute 2342 | -6/Factory | Entered Waste 2342 | -6/Waste | Spotted C-40 Crusher 2345 | -6/Waste | Spotted C-40 Crusher 2345 | -6/Waste | Spotted C-40 Crusher 2350 | -6/Waste | Spotted C-40 Crusher 2353 | -6/Waste | Discovered new exit (range 22) 2354 | -6/Waste | Spotted C-40 Crusher 2355 | -6/Waste | Spotted C-40 Crusher 2358 | -6/Waste | Identified exit to Factory 2358 | -6/Waste | Entered Factory 2506 | -6/Factory | Build established: Scout 2509 | -6/Factory | Identified exit to Lower Caves 2611 | -6/Factory | Discovered new exit (range 17) 2768 | -6/Factory | Released all parts (10) 2822 | -6/Factory | Core integrity fell below 50% 2828 | -6/Factory | Entered another Factory area 2828 | -5/Factory | Evolved 2 slots: Power x1, Propulsion x1 2971 | -5/Factory | Discovered new exit (range 22) 2982 | -5/Factory | Entered Extension 2996 | -5/Extension | Self-destructed Last Messages --------------- 02856_ Connecting with Terminal... 02889_ Acquired Imp. Recalibrator. 02900_ Acquired Adv. Terrain Scan Processor. 02910_ Connecting with DSF Access... 02928_ Door malfunctions. 02930_ ALERT: Security rotation in progress. 02946_ ALERT: Potential suspicious activity detected, Programmers report to Factory Zone 7I. 02948_ Connecting with Fabricator... 02953_ Slammed into K-01 Serf. 02953_ K-01 Serf knocked back. 02957_ System corrupted: Energy discharge (-31). 02971_ EXIT=FOUND 02978_ Connecting with Door Terminal... LOCATION=UNKNOWN GOAL=ESCAPE 02996_ Connecting with Door Terminal... 02996_ Current location identified: Extension 02996_ ALERT: Suspicious activity at Terminal E007. Dispatching Investigation squad. Map ----- +----------------------------------------------------+ | | | | | | | | | | | | | | | | | | | | | | | | | | | | | ????????????????????????????????? | | ????????????????????????????????? | | ????????????????????????????????? | | ????????????????????????????????? | | ????????????????????????????????? | | ????????????????????????????????? | | ????????????????????????????????? | | ????????????????????????????????? | | ????????????????????????????????? | | ????????????????????????????????? | | ???????#"##?????????????????????? | | ???????#@T#?????????????????????? | | ?????### ####???????????????????? | | ?????# +???????????????????? | | ?????# ###???????????????????? | | ?????# #?????????????????????? | | ?????# #?????????????????????? | | ?????# #?????????????????????? | | ?????# #####+##??????????????? | | ?????# ????? | | ?????# ###########??????????????? | | ?????# #????????????????????????? | | ?????# #????????????????????????? | | ?????# #????????????????????????? | | ?????# #????????????????????????? | | ?????# #????????????????????????? | | ?????# #????????????????????????? | | ?????# #????????????????????????? | | ?????# #????????????????????????? | | ?????# #????????????????????????? | | ?????# #????????????????????????? | | ?????# #????????????????????????? | | ?????# #????????????????????????? | | ?????# #????????????????????????? | | ?##### #####????????????????????? | | ?# "" "" #????????????????????? | +----------------------------------------------------+ Best States ------------- Heat Dissipation 40 Energy Generation 19 Energy Capacity 290 Matter Stores 300 Matter Capacity 300 Sight Range 22 Robot Scan Range 15 Terrain Scan Range 20 Terrain Scan Density 210 Evasion (%) 64 Item Schematics ----------------- Hacking Suite | -8/Materials | Hacked System Shield | -8/Materials | Hacked Robot Schematics ------------------ M-28 Smith | -8/Materials | Hacked Fabricated ------------ Nothing Repaired ---------- Nothing Studied --------- Cesium-ion Thruster | -6/Factory | Hacked Xenon Bombardment Thruster | -6/Factory | Hacked Imp. Deuterium Engine | -6/Factory | Hacked Lgt. Angular Momentum Engine | -6/Factory | Hacked Alien Tech Used ----------------- None Achievements -------------- None Challenges ------------ None Game ------ Seed PrecisionNetworkedLaser Manual? 0 Play Time 00:31:36 Cumulative 65.1 hours Start 2026.02.12 @ 16:37:30 End 2026.02.13 @ 14:00:34 Sessions 3 Manual Loads 0 Difficulty Rogue Special Mode None Game No. 137 Rogue 137 Adventurer 0 Explorer 0 Win Type - Total 0 Types 0/0/0/0/0/0/0/0/0/0 Lore% 45 Gallery% 34 Achievement% 32 Wizard Run 0 Options --------- Layout 0 ASCII 0 Keyboard 1 Movement Arrows Keybinds 0 Fullscreen 1 Font 18/Smallcaps Map View 76x50 Zoom Use 46% Tactical HUD 1 Map Filters NONE Filters NONE Steam 1 RUN: 4ca0e2dc-002d-481e-a51d-a507d1394585